bitfinex/quotes_SOLUSD_20250118
["timestamp","ask_amount","ask_price","bid_price","bid_amount"]
[1737204838656,0.0001,243.66,243.65,44.2975486]
[1737204838856,0.0001,243.66,243.65,51.25874986]
[1737204839238,0.0001,243.66,243.65,47.03874986]
[1737204839438,0.0001,243.66,243.65,59.06697304]
[1737204840251,0.0001,243.7,243.69,20.0]
[1737204840459,0.0001,243.7,243.69,63.16623662]
[1737204840660,0.0001,243.7,243.69,63.78150559]
[1737204841258,0.0001,243.7,243.69,67.26973662]
[1737204841435,19.38935262,243.86,243.77,20.0]
[1737204841635,19.38935262,243.86,243.79,19.38935262]
[1737204842046,19.38935262,243.86,243.77,20.0]
[1737204842047,19.38935262,243.86,243.77,19.38935262]
[1737204842245,19.38935262,243.84,243.75,19.38935262]
[1737204842636,19.38935262,243.82,243.75,19.38935262]
[1737204842839,19.38935262,243.84,243.76,23.776884]
[1737204843155,19.38935262,243.79,243.71,23.49255262]
[1737204843540,19.38935262,243.77,243.69,23.49275262]
[1737204843741,19.38935262,243.79,243.72,23.776884]
[1737204844843,19.38935262,243.77,243.69,23.49275262]
[1737204845053,19.38935262,243.73,243.67,4.1038]
[1737204845248,19.38935262,243.75,243.67,23.49315262]
[1737204845451,19.38935262,243.78,243.71,19.38935262]
[1737204845761,19.38935262,243.78,243.72,23.776884]
[1737204846139,19.38935262,243.78,243.72,23.276884]
[1737204846755,19.38935262,243.8,243.73,19.38935262]
[1737204847349,19.38935262,243.8,243.74,4.1027]
[1737204847858,19.38935262,243.82,243.74,4.1027]
[1737204849340,19.38935262,243.8,243.74,4.1027]
[1737204850338,19.38935262,243.8,243.69,23.776884]
[1737204850543,19.38935262,243.8,243.7,19.38935262]
[1737204852664,0.03,243.88,243.75,20.0]
[1737204852962,0.03,243.88,243.78,19.38935262]
[1737204852963,19.38935262,243.87,243.78,19.38935262]
[1737204853262,19.38935262,243.85,243.76,19.38935262]
[1737204853465,19.38935262,243.85,243.77,23.776884]
[1737204854844,19.38935262,243.85,243.79,23.776884]
[1737204856369,19.38935262,243.85,243.8,4.1017]
[1737204857445,0.063,243.86,243.81,23.776884]
[1737204858769,0.063,243.86,243.79,23.776884]
[1737204858957,0.063,243.86,243.79,38.133384]
[1737204859150,0.063,243.86,243.83,23.776884]
[1737204859665,0.063,243.86,243.85,43.776884]
[1737204860670,0.03,243.88,243.86,23.776884]
[1737204860864,19.41935262,243.95,243.87,47.26673662]
[1737204860865,0.03,243.95,243.87,47.26673662]
[1737204861073,0.03,243.95,243.88,19.38935262]
[1737204861264,19.41935262,243.95,243.88,19.38935262]
[1737204861449,12.1305096,243.95,243.88,12.1005096]
[1737204862355,0.03,243.95,243.88,12.1005096]
[1737204862770,0.03,243.95,243.91,23.776884]
[1737204863073,0.03,243.95,243.92,4.0997]
[1737204863452,12.1005096,243.93,243.81,4.1015]
[1737204863665,0.03,243.95,243.81,4.1015]
[1737204863666,12.1005096,243.88,243.81,4.1015]
[1737204864667,12.1005096,243.92,243.84,12.1005096]
[1737204865670,0.03,243.95,243.91,43.776884]
[1737204865872,0.03,243.95,243.94,35.8773936]
[1737204867169,0.03,244.0,243.98,20.0]
[1737204867466,0.03,244.0,243.99,43.776884]
[1737204867644,0.03,244.0,243.99,47.875384]
[1737204868169,0.0001,244.0,243.99,59.9758936]
[1737204868470,0.03,244.06,244.04,20.0]
[1737204868471,0.0001,244.06,244.04,20.0]
[1737204868669,0.0001,244.06,244.05,36.49169825]
[1737204869452,0.0001,244.06,244.05,43.71650345]
[1737204869863,0.0001,244.06,244.05,47.81400345]
[1737204871372,0.0001,244.06,244.05,75.13931825]
[1737204872171,0.063,244.11,244.09,20.0]
[1737204872376,0.0001,244.11,244.1,19.93950919]
[1737204872560,19.3253148,244.23,244.12,20.0]
[1737204872764,4.0932,244.31,244.17,20.0]
[1737204872967,19.3253148,244.23,244.15,19.3253148]
[1737204873162,19.3253148,244.21,244.13,25.6107148]
[1737204873377,19.3253148,244.21,244.13,19.3253148]
[1737204873676,19.3253148,244.19,244.09,19.3253148]
[1737204873878,19.3253148,244.19,244.09,23.4220148]
[1737204874062,19.3253148,244.17,244.09,19.3253148]
[1737204874257,19.3253148,244.15,244.07,19.3253148]
[1737204874953,19.3253148,244.17,244.08,23.776884]
[1737204875173,19.3253148,244.17,244.1,23.776884]
[1737204875361,23.4205148,244.19,244.1,23.776884]
[1737204876180,19.3253148,244.17,244.07,19.3253148]
[1737204876365,19.3253148,244.15,244.06,4.0972]
[1737204876566,19.3253148,244.17,244.09,19.3253148]
[1737204876762,19.3253148,244.17,244.1,23.776884]
[1737204876959,19.3253148,244.17,244.09,19.3253148]
[1737204877472,19.3253148,244.19,244.1,23.776884]
[1737204877776,4.0947,244.22,244.09,23.4221148]
[1737204877777,19.3253148,244.21,244.14,23.776884]
[1737204877962,4.0947,244.22,244.11,19.3253148]
[1737204877963,19.3883148,244.19,244.11,19.3253148]
[1737204878375,19.3883148,244.19,244.12,23.776884]
[1737204879070,19.3253148,244.17,244.09,19.3253148]
[1737204879270,19.3253148,244.13,244.05,19.3253148]
[1737204880264,19.3253148,244.13,244.06,23.776884]
[1737204880465,19.3253148,244.15,244.07,19.3253148]
[1737204881169,19.3253148,244.15,244.07,23.4223148]
[1737204882474,19.3253148,244.09,244.01,19.3253148]
[1737204883670,19.3253148,244.07,243.99,23.4236148]
[1737204883876,19.3253148,244.05,243.95,19.3253148]
[1737204884575,19.3253148,244.05,243.97,19.3253148]
[1737204884881,23.4222148,244.09,243.99,19.3253148]
[1737204885078,23.4222148,244.09,243.94,10.3847]
[1737204885079,19.3253148,244.09,244.01,19.3253148]
[1737204885773,19.3253148,244.09,243.99,19.3253148]
[1737204885975,19.3253148,244.05,243.97,19.3253148]
[1737204886370,4.0964,244.12,244.02,19.3253148]
[1737204886581,19.3253148,244.11,244.02,19.3253148]
[1737204886885,7.7654,244.13,244.04,19.3253148]
[1737204886886,27.0907148,244.13,244.04,19.3253148]
[1737204887269,7.7654,244.13,244.06,19.3253148]
[1737204887577,19.3253148,244.11,244.03,19.3253148]
[1737204887887,19.3253148,244.11,244.07,4.0971]
[1737204889082,19.3253148,244.09,244.02,4.098]
[1737204889574,19.3253148,244.09,244.04,0.03]
[1737204892178,19.3253148,244.07,244.04,0.03]
[1737204893490,4.0963,244.12,244.04,0.03]
[1737204893491,12.08909142,244.06,244.04,0.03]
[1737204897376,16.18639142,244.06,244.04,0.03]
[1737204899487,12.08909142,244.06,244.04,0.03]
[1737204901291,0.063,244.13,244.04,12.11909142]
[1737204901600,0.063,244.13,244.05,12.08909142]
[1737204902090,12.15209142,244.13,244.04,0.03]
[1737204902298,12.08909142,244.11,244.04,0.03]
[1737204902671,16.18569142,244.11,244.04,0.03]
[1737204902873,12.08909142,244.11,244.04,0.03]
[1737204903075,5.70652657,244.26,244.07,43.776884]
[1737204903277,12.15209142,244.19,244.1,12.08909142]
[1737204903480,19.38568067,244.19,244.11,23.776884]
[1737204904282,19.32268067,244.17,244.05,4.2]
[1737204904498,19.32268067,244.17,244.07,19.32268067]
[1737204904980,19.32268067,244.17,244.09,23.776884]
[1737204905404,19.32268067,244.17,244.09,43.09956467]
[1737204905700,0.063,244.19,244.11,43.09956467]
[1737204905895,19.32268067,244.18,244.09,19.32268067]
[1737204906503,19.32268067,244.18,244.1,23.776884]
[1737204907194,19.32268067,244.18,244.09,43.09956467]
[1737204907495,0.063,244.19,244.11,23.41918067]
[1737204907796,0.063,244.19,244.13,19.32268067]
[1737204907998,0.063,244.19,244.11,23.41918067]
[1737204908578,0.063,244.19,244.12,23.776884]
[1737204909102,0.063,244.19,244.13,19.32268067]
[1737204909302,0.063,244.19,244.14,4.096]
[1737204909521,0.063,244.19,244.14,27.872884]
[1737204909693,0.063,244.19,244.15,23.776884]
[1737204909881,0.063,244.19,244.18,20.0]
[1737204910502,0.063,244.19,244.14,14.336]
[1737204911380,0.063,244.19,244.17,20.0]
[1737204911698,0.063,244.19,244.18,4.0953]
[1737204912983,0.063,244.19,244.15,4.0958]
[1737204914904,0.063,244.19,244.12,23.776884]
[1737204915109,0.063,244.19,244.13,4.0961]
[1737204915690,0.063,244.19,244.14,43.776884]
[1737204916004,0.063,244.19,244.17,19.32268067]
[1737204916505,0.063,244.19,244.18,23.776884]
[1737204917104,0.063,244.19,244.18,27.872184]
[1737204917105,0.0001,244.19,244.18,27.872184]
[1737204920106,0.0001,244.19,244.18,23.41798067]
[1737204920297,0.0001,244.19,244.18,47.19486467]
[1737204920809,0.0001,244.19,244.18,27.872184]
[1737204921017,0.0001,244.19,244.18,47.19486467]
[1737204922221,0.0001,244.19,244.18,23.41798067]
[1737204923021,0.0001,244.19,244.18,55.19486467]
[1737204925317,0.0001,244.19,244.18,39.93684767]
[1737204925617,0.0001,244.19,244.18,16.77391521]
[1737204925915,0.0001,244.19,244.18,16.15996367]
[1737204927122,0.0001,244.19,244.18,16.77399309]
[1737204927817,12.12766367,244.3,244.22,23.776884]
[1737204927818,0.063,244.3,244.22,23.776884]
[1737204928013,0.063,244.3,244.26,23.776884]
[1737204929415,0.063,244.3,244.28,23.776884]
[1737204929805,0.063,244.3,244.28,20.72667483]
[1737204930901,0.063,244.3,244.26,4.0939]
[1737204933718,0.063,244.3,244.26,16.15856367]
[1737204934213,0.063,244.3,244.27,23.776884]
[1737204935226,0.063,244.3,244.29,23.776884]
[1737204935718,0.063,244.3,244.28,4.0936]
[1737204935929,0.063,244.3,244.29,23.776884]
[1737204936226,0.063,244.3,244.25,12.06466367]
[1737204936518,0.063,244.3,244.24,35.84154767]
[1737204936910,0.063,244.3,244.26,23.776884]
[1737204937112,0.063,244.3,244.26,27.870684]
[1737204937434,12.06466367,244.28,244.22,12.06466367]
[1737204937931,12.06466367,244.26,244.18,12.09466367]
[1737204938101,12.06466367,244.26,244.18,16.18996367]
[1737204938520,12.06466367,244.24,244.18,0.03]
[1737204938713,12.06466367,244.22,244.18,0.03]
[1737204940419,12.06466367,244.2,244.18,0.03]
[1737204941027,16.15936367,244.22,244.18,0.03]
[1737204941224,0.063,244.3,244.19,12.06466367]
[1737204941412,12.06466367,244.24,244.18,0.03]
[1737204941823,12.06466367,244.24,244.18,23.806884]
[1737204942042,12.06466367,244.29,244.21,12.06466367]
[1737204942333,0.063,244.3,244.19,12.06466367]
[1737204942334,12.06466367,244.27,244.19,12.06466367]
[1737204942534,12.06466367,244.27,244.2,23.776884]
[1737204942719,12.06466367,244.27,244.2,27.871884]
[1737204943423,12.06466367,244.27,244.2,4.095]
[1737204943627,12.06466367,244.25,244.18,4.1252]
[1737204943822,12.06466367,244.25,244.19,23.776884]
[1737204944134,12.06466367,244.21,244.18,0.03]
[1737204944507,12.06466367,244.24,244.18,0.03]
[1737204944712,12.06466367,244.2,244.18,0.03]
[1737204946734,4.0951,244.19,244.18,0.03]
[1737204948924,16.15976367,244.19,244.18,0.03]
[1737204949336,12.06466367,244.19,244.18,0.03]
[1737204950140,1.61267967,244.28,244.18,0.03]
[1737204950440,12.06466367,244.19,244.18,0.03]
[1737204951120,12.06466367,244.2,244.18,0.03]
[1737204951838,4.0951,244.19,244.18,0.03]
[1737204952023,12.06466367,244.2,244.18,0.03]
[1737204954121,24.12932734,244.2,244.18,0.03]
[1737204954726,28.22432734,244.2,244.18,0.03]
[1737204954928,28.22432734,244.2,244.04,0.03]
[1737204955118,12.06466367,244.1,244.04,4.1276]
[1737204955318,12.06466367,244.08,244.04,4.1276]
[1737204955544,12.06466367,244.1,244.04,4.1276]
[1737204956043,12.06466367,244.1,244.04,0.03]
[1737204958227,12.06466367,244.08,244.04,0.03]
[1737204959028,12.06466367,244.1,244.04,0.03]
[1737204959425,12.06466367,244.12,244.04,0.03]
[1737204960147,20.0,244.22,244.05,35.84154767]
[1737204960443,12.06466367,244.08,244.04,0.03]
[1737204961545,12.06466367,244.06,244.04,0.03]
[1737204962080,12.06466367,244.08,244.04,0.03]
[1737204962441,4.0958,244.15,243.79,24.20655714]
[1737204962442,23.776884,244.01,243.79,24.20655714]
[1737204962626,12.06466367,243.95,243.82,10.14533928]
[1737204962826,20.0,243.94,243.82,10.14533928]
[1737204963046,20.0,243.94,243.85,12.06466367]
[1737204963547,12.06466367,243.96,243.87,12.06466367]
[1737204963742,23.776884,243.87,243.8,0.03]
[1737204963949,20.0,243.8,243.63,6.04413928]
[1737204964252,20.0,243.68,243.63,3.07427549]
[1737204964428,20.0,243.64,243.58,47.53374281]
[1737204964630,20.0,243.64,243.53,48.35311428]
[1737204964953,20.0,243.64,243.49,4.1067]
[1737204964954,12.06466367,243.56,243.49,4.1067]
[1737204965153,12.06466367,243.51,243.45,0.03]
[1737204965452,19.43618342,243.48,243.45,0.03]
[1737204966032,19.43618342,243.48,243.37,0.61610777]
[1737204966234,19.43618342,243.48,243.38,19.43618342]
[1737204966844,19.43618342,243.42,243.36,14.45927051]
[1737204967064,19.43618342,243.48,243.39,19.43618342]
[1737204967354,19.43618342,243.46,243.37,33.81748342]
[1737204967726,19.43618342,243.44,243.37,14.3813]
[1737204968246,19.43618342,243.44,243.37,4.1089]
[1737204968847,19.43618342,243.42,243.36,10.04303693]
[1737204969650,19.43618342,243.42,243.34,23.776884]
[1737204971057,19.43618342,243.48,243.42,23.776884]
[1737204971237,19.43618342,243.46,243.39,19.43618342]
[1737204971443,19.43618342,243.42,243.35,19.43618342]
[1737204971948,19.43618342,243.4,243.36,20.0]
[1737204972152,19.43618342,243.42,243.36,20.0]
[1737204972344,19.43618342,243.42,243.35,23.776884]
[1737204973150,19.43618342,243.42,243.36,4.1091]
[1737204973362,19.43618342,243.46,243.37,63.21306742]
[1737204973666,19.43618342,243.48,243.42,20.0]
[1737204973868,19.43618342,243.44,243.36,4.1091]
[1737204974167,19.43618342,243.48,243.42,23.776884]
[1737204974665,19.43618342,243.5,243.44,23.776884]
[1737204975042,19.43618342,243.54,243.46,20.0]
[1737204975238,19.43618342,243.54,243.49,23.776884]
[1737204975851,19.43618342,243.54,243.42,4.1081]
[1737204976057,19.43618342,243.48,243.42,4.1081]
[1737204976270,19.43618342,243.5,243.42,4.1081]
[1737204976453,19.43618342,243.48,243.42,4.1081]
[1737204976656,19.43618342,243.46,243.42,4.1081]
[1737204977166,19.43618342,243.48,243.4,19.43618342]
[1737204977664,19.43618342,243.46,243.39,4.1086]
[1737204977868,19.43618342,243.46,243.39,24.1086]
[1737204978170,19.43618342,243.46,243.39,4.1086]
[1737204978782,19.43618342,243.46,243.37,27.885784]
[1737204978961,19.43618342,243.46,243.39,23.776884]
[1737204979671,19.43618342,243.44,243.37,4.1089]
[1737204980460,19.43618342,243.44,243.34,0.03]
[1737204980461,19.43618342,243.38,243.34,4.1394]
[1737204980766,20.0,243.45,243.34,0.03]
[1737204980962,19.43618342,243.38,243.34,0.03]
[1737204985859,19.43618342,243.4,243.34,0.03]
[1737204986468,19.43618342,243.4,243.31,4.1099]
[1737204987150,19.43618342,243.48,243.31,4.1099]
[1737204987151,19.43618342,243.42,243.34,19.43618342]
[1737204987350,19.43618342,243.44,243.36,19.43618342]
[1737204987869,19.43618342,243.42,243.34,19.43618342]
[1737204988775,20.0,243.5,243.34,19.43618342]
[1737204988967,19.43618342,243.43,243.34,19.43618342]
[1737204990280,19.43618342,243.43,243.35,4.1093]
[1737204990772,19.43618342,243.37,243.33,4.1096]
[1737204991182,19.43618342,243.43,243.33,23.54578342]
[1737204991472,19.43618342,243.41,243.33,23.54578342]
[1737204991656,19.43618342,243.43,243.33,23.54578342]
[1737204992379,19.43618342,243.45,243.37,19.43618342]
[1737204992557,19.43618342,243.47,243.39,19.43618342]
[1737204993356,19.43618342,243.49,243.41,19.43618342]
[1737204993560,19.43618342,243.51,243.43,19.43618342]
[1737204993759,19.43618342,243.49,243.39,19.43618342]
[1737204994158,19.43618342,243.49,243.41,19.43618342]
[1737204994371,19.43618342,243.49,243.41,23.54438342]
[1737204995484,19.43618342,243.51,243.43,19.43618342]
[1737204996367,19.43618342,243.51,243.41,19.43618342]
[1737204996778,19.43618342,243.51,243.41,5.17365807]
[1737204997350,23.776884,243.48,243.41,5.17365807]
[1737204997555,23.776884,243.48,243.39,19.43618342]
[1737204997876,19.43618342,243.49,243.39,19.43618342]
[1737204998552,19.43618342,243.49,243.4,4.1084]
[1737204998881,23.54308342,243.49,243.39,23.54468342]
[1737204999175,23.776884,243.46,243.37,23.54498342]
[1737204999369,35.92608888,243.46,243.37,16.25800488]
[1737204999587,12.14920488,243.46,243.37,16.25800488]
[1737205000075,12.14920488,243.4,243.27,4.1106]
[1737205000258,12.14920488,243.46,243.36,12.14920488]
[1737205000676,12.14920488,243.46,243.37,4.1089]
[1737205002056,20.0,243.54,243.38,12.14920488]
[1737205002257,12.14920488,243.5,243.4,12.14920488]
[1737205002481,12.14920488,243.42,243.27,4.1106]
[1737205002662,12.14920488,243.4,243.3,12.14920488]
[1737205003180,5.6423,243.58,243.36,12.14920488]
[1737205003484,12.14920488,243.46,243.36,12.14920488]
[1737205004075,23.776884,243.43,243.34,12.14920488]
[1737205004259,12.14920488,243.44,243.34,12.14920488]
[1737205004759,12.14920488,243.44,243.36,12.14920488]
[1737205005688,12.14920488,243.44,243.37,4.1089]
[1737205005860,12.14920488,243.46,243.37,4.1089]
[1737205006054,12.14920488,243.48,243.38,12.14920488]
[1737205007160,12.14920488,243.46,243.39,20.0]
[1737205007656,20.0,243.52,243.39,20.0]
[1737205007861,0.063,243.46,243.39,20.0]
[1737205008370,12.14920488,243.45,243.31,0.03]
[1737205008680,12.14920488,243.43,243.36,20.0]
[1737205010988,12.14920488,243.43,243.37,4.1089]
[1737205013390,12.14920488,243.38,243.31,4.1399]
[1737205013571,12.14920488,243.32,243.31,4.1399]
[1737205014292,12.14920488,243.32,243.31,0.03]
[1737205014611,35.92608888,243.32,243.31,0.03]
[1737205014767,35.92608888,243.32,243.24,0.03]
[1737205015090,12.14920488,243.25,243.24,0.03]
[1737205017871,48.07529376,243.25,243.24,0.03]
[1737205018073,23.776884,243.24,243.22,0.03]
[1737205018282,12.14920488,243.23,243.22,0.03]
[1737205018675,35.92608888,243.23,243.22,0.03]
[1737205019082,12.14920488,243.23,243.22,0.03]
[1737205024094,12.14920488,243.24,243.22,0.03]
[1737205024784,24.29840976,243.24,243.22,0.03]
[1737205025097,23.776884,243.23,243.22,0.03]
[1737205027169,23.776884,243.23,243.15,0.03]
[1737205027369,12.14920488,243.16,243.15,0.03]
[1737205027565,35.92608888,243.16,243.15,0.03]
[1737205031097,43.776884,243.1,243.09,0.03]
[1737205031394,55.92608888,243.1,243.09,0.03]
[1737205032280,12.14920488,243.1,243.09,0.03]
[1737205034496,35.92608888,243.1,243.09,0.03]
[1737205034990,12.14920488,243.1,243.09,0.03]
[1737205038598,16.26270488,243.1,243.09,0.03]
[1737205038786,16.26270488,243.1,243.06,0.03]
[1737205038986,35.92608888,243.07,243.06,0.03]
[1737205039710,40.04008888,243.07,243.06,0.03]
[1737205040307,23.776884,243.06,242.99,0.03]
[1737205040607,12.14920488,243.0,242.99,0.03]
[1737205044908,12.14920488,243.0,242.92,5.7731]
[1737205045111,12.14920488,242.97,242.92,5.7731]
[1737205045312,12.14920488,242.98,242.92,5.7731]
[1737205045479,12.14920488,242.99,242.92,17.92230488]
[1737205045803,12.14920488,243.04,242.97,12.14920488]
[1737205046198,12.14920488,243.05,242.97,12.14920488]
[1737205046707,12.14920488,243.03,242.97,12.14920488]
[1737205047106,12.14920488,243.03,242.95,32.14920488]
[1737205047290,12.14920488,243.03,242.96,12.14920488]
[1737205048011,12.14920488,243.03,242.95,32.14920488]
[1737205048511,12.14920488,243.03,242.96,16.26510488]
[1737205050903,12.14920488,243.03,242.96,4.1159]
[1737205053708,12.14920488,243.03,242.96,16.26510488]
[1737205054092,12.14920488,243.03,242.95,12.14920488]
[1737205054299,23.776884,243.07,242.95,4.64677386]
[1737205054613,12.14920488,243.02,242.94,12.14920488]
[1737205055415,12.14920488,243.03,242.95,12.14920488]
[1737205055897,12.14920488,243.03,242.96,12.14920488]
[1737205056097,12.14920488,243.03,242.97,4.1157]
[1737205056814,12.14920488,243.12,242.98,12.14920488]
[1737205056995,12.14920488,243.07,242.99,12.14920488]
[1737205057596,12.14920488,243.06,242.98,12.14920488]
[1737205058411,12.14920488,243.06,242.99,4.1153]
[1737205058615,12.14920488,243.09,243.01,12.14920488]
[1737205058805,12.14920488,243.08,243.01,12.14920488]
[1737205058990,8.0538,243.21,243.07,12.14920488]
[1737205058991,12.14920488,243.14,243.07,12.14920488]
[1737205059195,12.14920488,243.13,243.05,12.14920488]
[1737205059400,20.0,243.18,243.04,6.4263]
[1737205059605,23.776884,243.16,243.02,1.6196]
[1737205059819,23.776884,243.16,242.99,4.1153]
[1737205060598,12.14920488,243.06,242.99,4.1153]
[1737205060790,12.14920488,243.08,243.0,12.14920488]
[1737205061121,12.14920488,243.06,242.99,4.1153]
[1737205062928,12.14920488,243.08,243.0,12.14920488]
[1737205063226,12.14920488,243.08,243.01,4.115]
[1737205064225,12.149204,243.2,243.03,20.0]
[1737205064518,12.14920488,243.12,243.03,20.0]
[1737205064912,12.14920488,243.12,243.05,20.0]
[1737205065425,12.14920488,243.12,243.06,4.1142]
[1737205066104,0.063,243.08,243.06,4.1142]
[1737205067025,0.063,243.08,243.07,1.557]
[1737205067228,12.14920488,243.16,243.09,20.0]
[1737205067406,12.14920488,243.16,243.1,6.6121]
[1737205067914,12.14920488,243.18,243.1,18.76130488]
[1737205068225,12.14920488,243.2,243.12,12.14920488]
[1737205068425,12.14920488,243.21,243.13,20.0]
[1737205068628,12.14920488,243.21,243.13,32.14920488]
[1737205069307,12.14920488,243.17,243.1,6.6121]
[1737205069516,12.14920488,243.17,243.11,4.1133]
[1737205069720,12.14920488,243.15,243.1,6.6121]
[1737205069925,12.14920488,243.13,243.1,6.6121]
[1737205070225,12.14920488,243.13,243.07,5.6709]
[1737205070610,12.14920488,243.12,243.07,5.6709]
[1737205071722,12.14920488,243.12,243.04,18.76130488]
[1737205071937,12.14920488,243.06,242.98,8.1691]
[1737205072117,12.14920488,243.03,242.98,8.1691]
[1737205072633,12.14920488,242.99,242.93,10.7284]
[1737205073430,4.1145,243.05,242.92,1.587]
[1737205073431,12.14920488,242.95,242.92,0.03]
[1737205073729,12.14920488,242.93,242.92,0.03]
[1737205074327,35.92608888,242.93,242.92,0.03]
[1737205075732,35.92608888,242.93,242.87,0.03]
[1737205075733,20.0,242.9,242.87,0.03]
[1737205076030,20.0,242.9,242.84,0.03]
[1737205076031,23.776884,242.87,242.84,0.03]
[1737205076333,12.14920488,242.85,242.84,0.03]
[1737205076521,35.92608888,242.85,242.84,0.03]
[1737205076717,40.04378888,242.85,242.84,0.03]
[1737205078110,12.14920488,242.85,242.84,0.03]
[1737205078311,12.14920488,242.87,242.84,0.03]
[1737205078523,12.14920488,243.0,242.84,0.03]
[1737205078524,12.14920488,242.91,242.84,0.03]
[1737205078725,12.14920488,242.87,242.84,0.03]
[1737205079416,14.4037,242.99,242.84,0.03]
[1737205079417,12.14920488,242.89,242.84,0.03]
[1737205082239,12.14920488,242.92,242.84,12.17920488]
[1737205082529,12.14920488,242.9,242.84,0.03]
[1737205082739,12.14920488,242.88,242.84,0.03]
[1737205082910,12.14920488,242.86,242.84,0.03]
[1737205084427,12.14920488,242.88,242.84,0.03]
[1737205086246,12.14920488,242.86,242.84,0.03]
[1737205088644,12.14920488,242.88,242.84,0.03]
[1737205089318,12.14920488,242.85,242.84,0.03]
[1737205091424,0.063,242.92,242.84,0.03]
[1737205091425,12.14920488,242.87,242.84,0.03]
[1737205091629,12.14920488,242.91,242.84,0.03]
[1737205091812,0.063,242.92,242.88,12.14920488]
[1737205092012,0.063,242.92,242.88,20.0]
[1737205092230,0.063,242.92,242.91,12.14920488]
[1737205092432,12.14920488,243.02,242.91,12.14920488]
[1737205092639,12.14920488,243.0,242.91,12.14920488]
[1737205093331,12.14920488,242.98,242.89,12.14920488]
[1737205093637,12.14920488,242.98,242.9,4.1169]
[1737205093845,12.14920488,243.0,242.91,12.14920488]
[1737205095530,12.14920488,243.0,242.92,4.1165]
[1737205097327,12.14920488,243.0,242.88,20.0]
[1737205097641,12.14920488,243.02,242.92,12.14920488]
[1737205098018,12.14920488,242.96,242.85,12.1686]
[1737205098240,12.14920488,242.94,242.87,12.14920488]
[1737205098425,12.14920488,242.94,242.85,24.31780488]
[1737205099835,16.26550488,242.94,242.85,12.1686]
[1737205100144,12.14920488,242.94,242.86,12.14920488]
[1737205100336,12.14920488,242.96,242.86,12.14920488]
[1737205101140,16.26550488,242.94,242.85,12.1686]
[1737205101321,12.14920488,242.94,242.85,12.1686]
[1737205101737,12.14920488,242.94,242.85,8.051]
[1737205101922,12.02093546,243.08,242.89,32.14920488]
[1737205102133,12.14920488,243.0,242.91,12.14920488]
[1737205102843,12.21220488,243.0,242.91,12.14920488]
[1737205103432,12.21220488,243.0,242.99,6.2305]
[1737205103433,0.063,243.0,242.99,6.2305]
[1737205103744,0.063,243.0,242.88,12.14920488]
[1737205103745,12.14920488,243.0,242.83,18.3991]
[1737205104040,12.14920488,242.9,242.84,4.1478]
[1737205104341,12.14920488,242.94,242.84,16.29700488]
[1737205104522,12.14920488,242.94,242.87,20.0]
[1737205104849,12.14920488,242.92,242.84,4.1478]
[1737205105044,12.14920488,242.92,242.83,2.87586898]
[1737205105643,12.14920488,242.9,242.83,22.87586898]
[1737205106128,4.114,243.07,242.84,12.14920488]
[1737205106329,12.14920488,242.93,242.84,12.14920488]
[1737205106643,12.14920488,242.95,242.87,20.0]
[1737205109439,0.063,243.08,242.89,20.0]
[1737205109651,12.14920488,242.97,242.89,20.0]
[1737205110031,12.14920488,242.97,242.89,12.14920488]
[1737205110224,12.14920488,242.97,242.87,32.14920488]
[1737205110625,12.14920488,242.97,242.89,12.14920488]
[1737205113451,12.14920488,242.99,242.89,12.14920488]
[1737205114135,12.14920488,243.01,242.94,20.0]
[1737205117141,0.063,243.08,243.0,32.14920488]
[1737205117342,0.063,243.08,243.06,20.0]
[1737205117651,12.21220488,243.08,242.99,12.14920488]
[1737205117850,0.063,243.08,242.99,12.14920488]
[1737205118057,12.14920488,243.01,242.95,7.9839]
[1737205119641,12.14920488,243.03,242.95,7.9839]
[1737205119840,12.14920488,243.03,242.98,20.0]
[1737205120053,12.14920488,243.05,242.99,20.0]
[1737205120953,12.21220488,243.08,243.0,12.14920488]
[1737205121154,0.063,243.24,243.09,7.9839]
[1737205121354,25.48863359,243.37,243.23,32.28230976]